[Event "Early-Titled-Tuesday-Blitz-July-09-2024"]
[Site "Chess.com"]
[Date "2024.07.09"]
[Round "9"]
[White "Chernov_Alexander_A"]
[Black "Dino_Ballecer"]
[Result "1/2-1/2"]
[WhiteElo "2279"]
[BlackElo "2565"]
[TimeControl "180+1"]
[EndTime "9:45:37 PDT"]
[Termination "Game drawn by repetition"]

1. d4 {[%clk 0:03:00.9]} 1... c5 {[%clk 0:02:59.6]} 2. d5 {[%clk 0:03:00.1]}
2... Nf6 {[%clk 0:02:59.9]} 3. Nc3 {[%clk 0:03:00.1]} 3... d6 {[%clk 0:03:00]}
4. e4 {[%clk 0:02:59.9]} 4... g6 {[%clk 0:03:00.6]} 5. Nf3 {[%clk 0:02:59.5]}
5... Bg7 {[%clk 0:03:00.5]} 6. Be2 {[%clk 0:02:59.6]} 6... O-O {[%clk
0:03:00.1]} 7. O-O {[%clk 0:02:59.6]} 7... Na6 {[%clk 0:02:40.5]} 8. Nd2 {[%clk
0:02:57.6]} 8... Nc7 {[%clk 0:02:40]} 9. a4 {[%clk 0:02:56.7]} 9... b6 {[%clk
0:02:39]} 10. Nc4 {[%clk 0:02:56.2]} 10... Nd7 {[%clk 0:02:38.4]} 11. Bf4 {[%clk
0:02:51.9]} 11... Ba6 {[%clk 0:02:36.2]} 12. Re1 {[%clk 0:02:44.1]} 12... Rb8
{[%clk 0:02:34.7]} 13. Qd2 {[%clk 0:02:29.7]} 13... Bxc4 {[%clk 0:02:31.7]} 14.
Bxc4 {[%clk 0:02:28.7]} 14... a6 {[%clk 0:02:32.3]} 15. Qd3 {[%clk 0:02:14]}
15... Bxc3 {[%clk 0:02:08.1]} 16. Qxc3 {[%clk 0:02:09.3]} 16... f6 {[%clk
0:02:08.3]} 17. Be2 {[%clk 0:01:55.9]} 17... b5 {[%clk 0:02:05.1]} 18. b3 {[%clk
0:01:47.5]} 18... Ne5 {[%clk 0:02:01.2]} 19. Qd2 {[%clk 0:01:39.8]} 19... Rf7
{[%clk 0:02:00.7]} 20. axb5 {[%clk 0:01:25.3]} 20... axb5 {[%clk 0:01:58]} 21.
Ra7 {[%clk 0:01:20.6]} 21... b4 {[%clk 0:01:55.7]} 22. Rea1 {[%clk 0:01:17.9]}
22... Ra8 {[%clk 0:01:49.7]} 23. Rxa8 {[%clk 0:01:07.1]} 23... Nxa8 {[%clk
0:01:49.2]} 24. h3 {[%clk 0:01:06.1]} 24... Nc7 {[%clk 0:01:43.3]} 25. Be3
{[%clk 0:01:00]} 25... g5 {[%clk 0:01:37.5]} 26. Ra7 {[%clk 0:00:48]} 26... Qb8
{[%clk 0:01:35.5]} 27. Ra4 {[%clk 0:00:44.2]} 27... Rf8 {[%clk 0:01:33.9]} 28.
Bg4 {[%clk 0:00:41]} 28... Qb7 {[%clk 0:01:33.3]} 29. Bf5 {[%clk 0:00:37.1]}
29... h6 {[%clk 0:01:27]} 30. Kh2 {[%clk 0:00:35.8]} 30... Ra8 {[%clk
0:01:25.9]} 31. Rxa8+ {[%clk 0:00:33.8]} 31... Qxa8 {[%clk 0:01:26.8]} 32. Qe2
{[%clk 0:00:33.8]} 32... Qe8 {[%clk 0:01:24.8]} 33. g3 {[%clk 0:00:32.6]} 33...
Kg7 {[%clk 0:01:20.3]} 34. f4 {[%clk 0:00:32.1]} 34... Nd7 {[%clk 0:01:16.9]}
35. h4 {[%clk 0:00:29.8]} 35... gxh4 {[%clk 0:01:04.9]} 36. gxh4 {[%clk
0:00:29.4]} 36... Nf8 {[%clk 0:01:00.3]} 37. Qg4+ {[%clk 0:00:28]} 37... Kh8
{[%clk 0:01:00]} 38. h5 {[%clk 0:00:24.2]} 38... Qf7 {[%clk 0:00:59.4]} 39. Bg6
{[%clk 0:00:19]} 39... Nxg6 {[%clk 0:00:57.2]} 40. hxg6 {[%clk 0:00:19.3]} 40...
Qe8 {[%clk 0:00:54.2]} 41. f5 {[%clk 0:00:19.6]} 41... Qb5 {[%clk 0:00:46.9]}
42. Bxh6 {[%clk 0:00:17.4]} 42... Qf1 {[%clk 0:00:44.9]} 43. Bf4 {[%clk
0:00:15.2]} 43... Qf2+ {[%clk 0:00:43.6]} 44. Kh3 {[%clk 0:00:15.1]} 44... Qf1+
{[%clk 0:00:42.9]} 45. Kh2 {[%clk 0:00:15.2]} 45... Qf2+ {[%clk 0:00:42.7]} 46.
Kh3 {[%clk 0:00:15.3]} 46... Qf1+ {[%clk 0:00:42.9]} 47. Kh2 {[%clk 0:00:15.5]}
1/2-1/2

[Event "Early-Titled-Tuesday-Blitz-July-09-2024"]
[Site "Chess.com"]
[Date "2024.07.09"]
[Round "9"]
[White "hakanazeri2"]
[Black "Rakhmanov_Aleksandr"]
[Result "1-0"]
[WhiteElo "2669"]
[BlackElo "2848"]
[TimeControl "180+1"]
[EndTime "9:45:38 PDT"]
[Termination "hakanazeri2 won on time"]

1. Nf3 {[%clk 0:03:00.9]} 1... d5 {[%clk 0:02:59.1]} 2. d4 {[%clk 0:03:01.2]}
2... c6 {[%clk 0:02:57.4]} 3. c4 {[%clk 0:03:01.4]} 3... e6 {[%clk 0:02:54.6]}
4. g3 {[%clk 0:03:00]} 4... f5 {[%clk 0:02:54.4]} 5. Bg2 {[%clk 0:02:58.9]} 5...
Nf6 {[%clk 0:02:54.5]} 6. O-O {[%clk 0:02:59.1]} 6... Bd6 {[%clk 0:02:53.2]} 7.
b3 {[%clk 0:02:59]} 7... Qe7 {[%clk 0:02:52.9]} 8. a4 {[%clk 0:02:59]} 8... a5
{[%clk 0:02:52.1]} 9. Ba3 {[%clk 0:02:59.3]} 9... Bxa3 {[%clk 0:02:52.3]} 10.
Nxa3 {[%clk 0:03:00.2]} 10... Nbd7 {[%clk 0:02:51.3]} 11. Nc2 {[%clk 0:03:00.5]}
11... O-O {[%clk 0:02:50.3]} 12. Nce1 {[%clk 0:03:01]} 12... Ne4 {[%clk
0:02:49]} 13. Nd3 {[%clk 0:03:01.3]} 13... Ndf6 {[%clk 0:02:49.4]} 14. Nfe5
{[%clk 0:03:01.5]} 14... Bd7 {[%clk 0:02:49.9]} 15. e3 {[%clk 0:03:01.8]} 15...
Be8 {[%clk 0:02:50]} 16. Rc1 {[%clk 0:02:58.6]} 16... Bh5 {[%clk 0:02:48.9]} 17.
Qc2 {[%clk 0:02:57.1]} 17... g5 {[%clk 0:02:44.8]} 18. f3 {[%clk 0:02:40.2]}
18... Nd6 {[%clk 0:02:44.3]} 19. h3 {[%clk 0:02:07.7]} 19... Bg6 {[%clk
0:02:33.8]} 20. f4 {[%clk 0:02:01.9]} 20... gxf4 {[%clk 0:02:28.7]} 21. Nxf4
{[%clk 0:01:45.3]} 21... Kg7 {[%clk 0:02:03]} 22. g4 {[%clk 0:01:45.3]} 22...
Nde4 {[%clk 0:01:57.7]} 23. cxd5 {[%clk 0:01:36.7]} 23... exd5 {[%clk
0:01:42.9]} 24. Nfxg6 {[%clk 0:01:34.9]} 24... hxg6 {[%clk 0:01:42.3]} 25. gxf5
{[%clk 0:01:35.3]} 25... Ng3 {[%clk 0:01:28.3]} 26. Rf3 {[%clk 0:01:21.3]} 26...
Nxf5 {[%clk 0:01:28.2]} 27. Nxg6 {[%clk 0:01:18]} 27... Qe4 {[%clk 0:00:58.1]}
28. Nxf8 {[%clk 0:01:10.4]} 28... Rxf8 {[%clk 0:00:17.2]} 29. Rxf5 {[%clk
0:01:08.8]} 29... Qxe3+ {[%clk 0:00:17.3]} 30. Kh1 {[%clk 0:01:05.7]} 30... Ne4
{[%clk 0:00:06]} 31. Rxf8 {[%clk 0:01:00.8]} 31... Ng3+ {[%clk 0:00:03.3]} 32.
Kh2 {[%clk 0:01:00.3]} 32... Kxf8 {[%clk 0:00:03.3]} 33. Rf1+ {[%clk 0:00:59.3]}
33... Nxf1+ {[%clk 0:00:03.3]} 34. Bxf1 {[%clk 0:00:57.9]} 34... Qf4+ {[%clk
0:00:03.5]} 35. Kg2 {[%clk 0:00:56.4]} 35... Qg5+ {[%clk 0:00:01.6]} 36. Kh1
{[%clk 0:00:50.1]} 36... Qf4 {[%clk 0:00:01.5]} 37. Kg1 {[%clk 0:00:50.6]} 37...
Qxd4+ {[%clk 0:00:01.9]} 38. Qf2+ {[%clk 0:00:51]} 38... Qxf2+ {[%clk
0:00:01.7]} 39. Kxf2 {[%clk 0:00:51.9]} 39... Kg7 {[%clk 0:00:02.1]} 40. Ke3
{[%clk 0:00:52.1]} 40... Kf6 {[%clk 0:00:02.8]} 41. Kd4 {[%clk 0:00:52.5]} 41...
b6 {[%clk 0:00:03.3]} 42. h4 {[%clk 0:00:51.4]} 42... Ke6 {[%clk 0:00:03.7]} 43.
Bh3+ {[%clk 0:00:51.8]} 43... Kd6 {[%clk 0:00:04]} 44. h5 {[%clk 0:00:52.4]}
44... c5+ {[%clk 0:00:04.9]} 45. Kd3 {[%clk 0:00:49.3]} 45... Ke7 {[%clk
0:00:05.5]} 46. Bg2 {[%clk 0:00:48.7]} 46... d4 {[%clk 0:00:02.5]} 47. Kc4
{[%clk 0:00:48.7]} 47... Kf6 {[%clk 0:00:03.2]} 48. Be4 {[%clk 0:00:49.1]} 1-0

[Event "Early-Titled-Tuesday-Blitz-July-09-2024"]
[Site "Chess.com"]
[Date "2024.07.09"]
[Round "9"]
[White "temus_galaktionov"]
[Black "MKlose11"]
[Result "1-0"]
[WhiteElo "2843"]
[BlackElo "2668"]
[TimeControl "180+1"]
[EndTime "9:45:39 PDT"]
[Termination "temus_galaktionov won by resignation"]

1. d4 {[%clk 0:03:00.9]} 1... Nf6 {[%clk 0:02:54.1]} 2. c4 {[%clk 0:03:01.8]}
2... c5 {[%clk 0:02:53.3]} 3. Nf3 {[%clk 0:03:02.7]} 3... cxd4 {[%clk
0:02:52.8]} 4. Nxd4 {[%clk 0:03:03.5]} 4... Nc6 {[%clk 0:02:53.5]} 5. Nf3 {[%clk
0:03:01.9]} 5... g6 {[%clk 0:02:53.6]} 6. Nc3 {[%clk 0:03:01.7]} 6... Bg7 {[%clk
0:02:53.5]} 7. g3 {[%clk 0:03:01.9]} 7... O-O {[%clk 0:02:53.6]} 8. Bg2 {[%clk
0:03:02.4]} 8... d6 {[%clk 0:02:54.3]} 9. O-O {[%clk 0:03:02.7]} 9... Bd7 {[%clk
0:02:54.8]} 10. Bf4 {[%clk 0:02:56.2]} 10... Qa5 {[%clk 0:02:54.7]} 11. Rc1
{[%clk 0:02:55.8]} 11... Rfe8 {[%clk 0:02:54.7]} 12. Qd2 {[%clk 0:02:54.6]}
12... Rac8 {[%clk 0:02:54.4]} 13. Rfd1 {[%clk 0:02:53.9]} 13... Qh5 {[%clk
0:02:54.2]} 14. b3 {[%clk 0:02:48.8]} 14... Bh3 {[%clk 0:02:52.3]} 15. Nd5
{[%clk 0:02:47]} 15... Bxg2 {[%clk 0:02:50.7]} 16. Kxg2 {[%clk 0:02:47.9]} 16...
Qf5 {[%clk 0:02:43.5]} 17. h3 {[%clk 0:02:45.3]} 17... Qe4 {[%clk 0:02:35.9]}
18. Nc3 {[%clk 0:02:37.6]} 18... Qf5 {[%clk 0:02:30.7]} 19. g4 {[%clk
0:02:35.7]} 19... Qe6 {[%clk 0:02:30.7]} 20. Nd5 {[%clk 0:02:35.3]} 20... Qe4
{[%clk 0:02:27.7]} 21. Nc3 {[%clk 0:02:32.4]} 21... Qe6 {[%clk 0:02:27.1]} 22.
Ng5 {[%clk 0:02:32.6]} 22... Qd7 {[%clk 0:02:24.6]} 23. c5 {[%clk 0:02:32.6]}
23... h6 {[%clk 0:02:04.9]} 24. Nf3 {[%clk 0:02:32.2]} 24... e5 {[%clk
0:01:54.6]} 25. Bg3 {[%clk 0:02:29.6]} 25... e4 {[%clk 0:01:55]} 26. Nh2 {[%clk
0:02:20.5]} 26... d5 {[%clk 0:01:33.2]} 27. Nxd5 {[%clk 0:02:19.7]} 27... Qe6
{[%clk 0:01:26.8]} 28. Nc7 {[%clk 0:02:14.8]} 28... Rxc7 {[%clk 0:01:23.8]} 29.
Bxc7 {[%clk 0:02:15.7]} 29... h5 {[%clk 0:01:22.5]} 30. Qd6 {[%clk 0:02:12]}
30... Qc8 {[%clk 0:01:16.8]} 31. g5 {[%clk 0:02:03.6]} 31... Nh7 {[%clk
0:01:16.1]} 32. h4 {[%clk 0:02:02.7]} 32... Be5 {[%clk 0:01:15.3]} 33. Qd7
{[%clk 0:02:01]} 33... Bxc7 {[%clk 0:01:12.2]} 34. Qxc8 {[%clk 0:02:00.7]} 34...
Rxc8 {[%clk 0:01:13.1]} 35. Rc4 {[%clk 0:01:58.5]} 35... f5 {[%clk 0:00:59.1]}
36. gxf6 {[%clk 0:01:51.3]} 36... Nxf6 {[%clk 0:00:59]} 37. Nf1 {[%clk
0:01:48.7]} 37... Ne5 {[%clk 0:00:48]} 38. Rcd4 {[%clk 0:01:45.8]} 38... Kf7
{[%clk 0:00:46]} 39. Ng3 {[%clk 0:01:45]} 39... e3 {[%clk 0:00:42.1]} 40. f3
{[%clk 0:01:37.6]} 40... Nc6 {[%clk 0:00:38.6]} 41. Rc4 {[%clk 0:01:36.8]} 41...
Re8 {[%clk 0:00:35.6]} 42. b4 {[%clk 0:01:34.3]} 42... a6 {[%clk 0:00:35.4]} 43.
a4 {[%clk 0:01:34.2]} 43... Ne7 {[%clk 0:00:28.7]} 44. b5 {[%clk 0:01:30.2]}
44... axb5 {[%clk 0:00:28.6]} 45. axb5 {[%clk 0:01:31.1]} 45... Bxg3 {[%clk
0:00:29]} 46. Kxg3 {[%clk 0:01:32]} 46... Nf5+ {[%clk 0:00:29.6]} 47. Kg2 {[%clk
0:01:28.6]} 47... Rc8 {[%clk 0:00:27]} 48. c6 {[%clk 0:01:03.4]} 48... bxc6
{[%clk 0:00:26.9]} 49. bxc6 {[%clk 0:01:02.2]} 49... Ne7 {[%clk 0:00:20.6]} 50.
Rd6 {[%clk 0:00:54.7]} 50... Ne8 {[%clk 0:00:17.9]} 51. Rd7 {[%clk 0:00:42.6]}
51... Ke6 {[%clk 0:00:17.5]} 52. Re4+ {[%clk 0:00:42.3]} 52... Kf6 {[%clk
0:00:16]} 53. Rdxe7 {[%clk 0:00:40.9]} 53... Nd6 {[%clk 0:00:15.6]} 54. R7e6+
{[%clk 0:00:40.9]} 54... Kf5 {[%clk 0:00:15.5]} 55. Rxd6 {[%clk 0:00:41.8]} 1-0

[Event "Early-Titled-Tuesday-Blitz-July-09-2024"]
[Site "Chess.com"]
[Date "2024.07.09"]
[Round "9"]
[White "DucksParadise"]
[Black "EternalNight8"]
[Result "1-0"]
[WhiteElo "2617"]
[BlackElo "2399"]
[TimeControl "180+1"]
[EndTime "9:45:42 PDT"]
[Termination "DucksParadise won on time"]

1. e4 {[%clk 0:03:00.9]} 1... c5 {[%clk 0:02:59.2]} 2. Nc3 {[%clk 0:02:57.6]}
2... a6 {[%clk 0:02:59.4]} 3. d4 {[%clk 0:02:46.7]} 3... cxd4 {[%clk 0:02:57.5]}
4. Qxd4 {[%clk 0:02:47.6]} 4... Nc6 {[%clk 0:02:57.4]} 5. Qe3 {[%clk 0:02:48]}
5... b5 {[%clk 0:02:56.9]} 6. Nf3 {[%clk 0:02:36.8]} 6... g6 {[%clk 0:02:55.5]}
7. Be2 {[%clk 0:02:33.8]} 7... Bg7 {[%clk 0:02:46.1]} 8. Nd5 {[%clk 0:02:27.2]}
8... e6 {[%clk 0:02:36.3]} 9. Nb6 {[%clk 0:02:20.8]} 9... Rb8 {[%clk 0:02:05.1]}
10. Nxc8 {[%clk 0:02:19.6]} 10... Qxc8 {[%clk 0:02:06]} 11. c3 {[%clk
0:02:16.4]} 11... Nge7 {[%clk 0:02:03]} 12. O-O {[%clk 0:02:16.2]} 12... O-O
{[%clk 0:02:02.1]} 13. Rd1 {[%clk 0:02:09.4]} 13... d5 {[%clk 0:02:02.1]} 14. h4
{[%clk 0:02:00.8]} 14... h5 {[%clk 0:01:55.5]} 15. exd5 {[%clk 0:01:42.8]} 15...
Nxd5 {[%clk 0:01:55.4]} 16. Qe4 {[%clk 0:01:37.2]} 16... Qc7 {[%clk 0:01:53.8]}
17. a4 {[%clk 0:01:28.8]} 17... b4 {[%clk 0:01:50.2]} 18. c4 {[%clk 0:01:22.9]}
18... Nf6 {[%clk 0:01:44.3]} 19. Qf4 {[%clk 0:01:21.4]} 19... e5 {[%clk
0:01:41.9]} 20. Qe3 {[%clk 0:01:14.5]} 20... Ng4 {[%clk 0:01:36.4]} 21. Qe4
{[%clk 0:01:13.2]} 21... Rbd8 {[%clk 0:01:21.2]} 22. Bg5 {[%clk 0:01:08.5]}
22... f6 {[%clk 0:01:08.4]} 23. Qxg6 {[%clk 0:00:42.4]} 23... Qb6 {[%clk
0:00:38.5]} 24. Rf1 {[%clk 0:00:22.5]} 24... fxg5 {[%clk 0:00:19.7]} 25. Qxh5
{[%clk 0:00:21.7]} 25... Nf6 {[%clk 0:00:17.9]} 26. Qxg5 {[%clk 0:00:21.5]}
26... e4 {[%clk 0:00:15.3]} 27. c5 {[%clk 0:00:21.3]} 27... Qc7 {[%clk
0:00:13.6]} 28. Bc4+ {[%clk 0:00:21.8]} 28... Kh8 {[%clk 0:00:12.5]} 29. Nh2
{[%clk 0:00:19]} 29... Ne5 {[%clk 0:00:11.1]} 30. Bb3 {[%clk 0:00:17.3]} 30...
Nh7 {[%clk 0:00:10.7]} 31. Qh5 {[%clk 0:00:15.5]} 31... Qxc5 {[%clk 0:00:09.5]}
32. Kh1 {[%clk 0:00:13.6]} 32... Rxf2 {[%clk 0:00:08.7]} 33. Rxf2 {[%clk
0:00:11.7]} 33... Qxf2 {[%clk 0:00:09.6]} 34. Rf1 {[%clk 0:00:11.9]} 34... Qxb2
{[%clk 0:00:09.2]} 35. Be6 {[%clk 0:00:10.4]} 35... Qd4 {[%clk 0:00:07.8]} 36.
Bf5 {[%clk 0:00:10.3]} 1-0

[Event "Early-Titled-Tuesday-Blitz-July-09-2024"]
[Site "Chess.com"]
[Date "2024.07.09"]
[Round "9"]
[White "AndresDelgado77"]
[Black "Happy1712Drummer"]
[Result "0-1"]
[WhiteElo "2326"]
[BlackElo "2443"]
[TimeControl "180+1"]
[EndTime "9:45:42 PDT"]
[Termination "Happy1712Drummer won by resignation"]

1. e4 {[%clk 0:02:52.1]} 1... c5 {[%clk 0:02:57.8]} 2. Nf3 {[%clk 0:02:46.1]}
2... e6 {[%clk 0:02:58.2]} 3. Nc3 {[%clk 0:02:43.8]} 3... Nc6 {[%clk 0:02:57.6]}
4. d4 {[%clk 0:02:38.3]} 4... cxd4 {[%clk 0:02:58.5]} 5. Nxd4 {[%clk 0:02:37.4]}
5... Nf6 {[%clk 0:02:59.2]} 6. a3 {[%clk 0:02:16.7]} 6... d5 {[%clk 0:02:51.7]}
7. Bb5 {[%clk 0:02:08.9]} 7... Qb6 {[%clk 0:02:24.7]} 8. exd5 {[%clk 0:01:45.6]}
8... exd5 {[%clk 0:02:20.7]} 9. O-O {[%clk 0:01:32.8]} 9... Bc5 {[%clk
0:02:15.9]} 10. Na4 {[%clk 0:01:12.2]} 10... Qc7 {[%clk 0:01:47.3]} 11. Nxc5
{[%clk 0:01:09.6]} 11... O-O {[%clk 0:01:46.7]} 12. Bxc6 {[%clk 0:01:06.9]}
12... bxc6 {[%clk 0:01:45.2]} 13. b4 {[%clk 0:01:04.6]} 13... a5 {[%clk
0:01:45]} 14. Bg5 {[%clk 0:01:03.9]} 14... Ng4 {[%clk 0:01:27.6]} 15. g3 {[%clk
0:01:00.1]} 15... axb4 {[%clk 0:01:25.4]} 16. axb4 {[%clk 0:00:59.4]} 16... Rxa1
{[%clk 0:01:26.2]} 17. Qxa1 {[%clk 0:00:58.3]} 17... Qe5 {[%clk 0:01:22.3]} 18.
Bf4 {[%clk 0:00:57.1]} 18... Qh5 {[%clk 0:01:20]} 19. h4 {[%clk 0:00:45.3]}
19... h6 {[%clk 0:01:18.6]} 20. f3 {[%clk 0:00:40.4]} 20... Nf6 {[%clk
0:01:12.9]} 21. Re1 {[%clk 0:00:37]} 21... g5 {[%clk 0:00:33.2]} 22. hxg5 {[%clk
0:00:33.5]} 22... hxg5 {[%clk 0:00:34.1]} 23. Re5 {[%clk 0:00:33.6]} 23... Nh7
{[%clk 0:00:33]} 24. Qc1 {[%clk 0:00:26.1]} 24... f6 {[%clk 0:00:31.1]} 25. Re7
{[%clk 0:00:20.6]} 25... Qh3 {[%clk 0:00:24.2]} 26. Nxc6 {[%clk 0:00:16.6]}
26... gxf4 {[%clk 0:00:21.7]} 27. Qxf4 {[%clk 0:00:16.5]} 27... Ng5 {[%clk
0:00:21.4]} 28. Re2 {[%clk 0:00:12.7]} 28... Qh6 {[%clk 0:00:17.4]} 29. Ne7+
{[%clk 0:00:12.7]} 29... Kf7 {[%clk 0:00:16.1]} 30. Nxc8 {[%clk 0:00:12.6]}
30... Nh3+ {[%clk 0:00:16.1]} 31. Kg2 {[%clk 0:00:09.1]} 31... Nxf4+ {[%clk
0:00:16.7]} 32. gxf4 {[%clk 0:00:10]} 32... Rxc8 {[%clk 0:00:16.8]} 33. Nd3
{[%clk 0:00:09.9]} 33... Rg8+ {[%clk 0:00:16.8]} 34. Kf2 {[%clk 0:00:09.1]}
34... Qh2+ {[%clk 0:00:15.3]} 35. Ke3 {[%clk 0:00:09.4]} 35... Re8+ {[%clk
0:00:15.3]} 36. Kd2 {[%clk 0:00:09.7]} 36... Qxe2+ {[%clk 0:00:15.6]} 37. Kc3
{[%clk 0:00:10.6]} 37... Rc8+ {[%clk 0:00:15.8]} 0-1

[Event "Early-Titled-Tuesday-Blitz-July-09-2024"]
[Site "Chess.com"]
[Date "2024.07.09"]
[Round "9"]
[White "santig8"]
[Black "Dewarfd"]
[Result "0-1"]
[WhiteElo "2265"]
[BlackElo "2095"]
[TimeControl "180+1"]
[EndTime "9:45:42 PDT"]
[Termination "Dewarfd won on time"]

1. e4 {[%clk 0:03:00.9]} 1... c5 {[%clk 0:02:58.8]} 2. d4 {[%clk 0:03:00.2]}
2... cxd4 {[%clk 0:02:58.3]} 3. c3 {[%clk 0:03:00.2]} 3... g6 {[%clk 0:02:58.4]}
4. cxd4 {[%clk 0:03:00.1]} 4... d5 {[%clk 0:02:57.2]} 5. exd5 {[%clk 0:02:57.5]}
5... Nf6 {[%clk 0:02:57.1]} 6. Nc3 {[%clk 0:02:46.3]} 6... Nxd5 {[%clk
0:02:55.8]} 7. Bc4 {[%clk 0:02:45.5]} 7... Nb6 {[%clk 0:02:55.6]} 8. Bb5+ {[%clk
0:02:43.3]} 8... Bd7 {[%clk 0:02:55.2]} 9. Bxd7+ {[%clk 0:02:42.6]} 9... N8xd7
{[%clk 0:02:55.7]} 10. Nf3 {[%clk 0:02:37]} 10... Bg7 {[%clk 0:02:55]} 11. O-O
{[%clk 0:02:36.6]} 11... Nf6 {[%clk 0:02:54.9]} 12. Bf4 {[%clk 0:02:29.2]} 12...
a6 {[%clk 0:02:48.7]} 13. Re1 {[%clk 0:02:24.3]} 13... O-O {[%clk 0:02:48.3]}
14. Qb3 {[%clk 0:02:23]} 14... e6 {[%clk 0:02:39.1]} 15. Rac1 {[%clk 0:02:17.9]}
15... Nbd5 {[%clk 0:02:33]} 16. Nxd5 {[%clk 0:02:09.5]} 16... Nxd5 {[%clk
0:02:32.5]} 17. Be5 {[%clk 0:02:09.5]} 17... b5 {[%clk 0:02:24.2]} 18. Bxg7
{[%clk 0:02:04.4]} 18... Kxg7 {[%clk 0:02:24]} 19. Ne5 {[%clk 0:02:04.1]} 19...
Rc8 {[%clk 0:02:13.6]} 20. h3 {[%clk 0:01:35.7]} 20... Qg5 {[%clk 0:02:01.8]}
21. Rxc8 {[%clk 0:01:29.4]} 21... Rxc8 {[%clk 0:02:01.1]} 22. Qf3 {[%clk
0:01:26]} 22... Qf4 {[%clk 0:01:48.1]} 23. Qa3 {[%clk 0:01:11.4]} 23... Rc2
{[%clk 0:01:25.9]} 24. Nf3 {[%clk 0:00:58.2]} 24... b4 {[%clk 0:01:10.8]} 25.
Qxa6 {[%clk 0:00:33.1]} 25... Rxb2 {[%clk 0:01:04.9]} 26. Qa7 {[%clk 0:00:32.8]}
26... Nc3 {[%clk 0:00:27.9]} 27. Qa6 {[%clk 0:00:10.6]} 27... Ne4 {[%clk
0:00:23.4]} 28. Rf1 {[%clk 0:00:08.9]} 28... Nd2 {[%clk 0:00:17.8]} 29. Nxd2
{[%clk 0:00:08.4]} 29... Qxd2 {[%clk 0:00:18.7]} 30. Qb5 {[%clk 0:00:06.1]}
30... Rxa2 {[%clk 0:00:17.9]} 31. Qe5+ {[%clk 0:00:05.2]} 31... Kh6 {[%clk
0:00:15.4]} 32. h4 {[%clk 0:00:05.1]} 32... b3 {[%clk 0:00:12.9]} 33. Qe4 {[%clk
0:00:03.1]} 33... Ra5 {[%clk 0:00:10.7]} 34. g3 {[%clk 0:00:02.2]} 34... Rf5
{[%clk 0:00:09.4]} 35. g4 {[%clk 0:00:01.6]} 35... Rf4 {[%clk 0:00:09]} 36. g5+
{[%clk 0:00:01.3]} 36... Kh5 {[%clk 0:00:08.3]} 0-1

[Event "Early-Titled-Tuesday-Blitz-July-09-2024"]
[Site "Chess.com"]
[Date "2024.07.09"]
[Round "9"]
[White "Kirill_Klukin"]
[Black "Kobalia"]
[Result "1-0"]
[WhiteElo "2932"]
[BlackElo "2817"]
[TimeControl "180+1"]
[EndTime "9:45:44 PDT"]
[Termination "Kirill_Klukin won on time"]

1. d4 {[%clk 0:03:00.9]} 1... d5 {[%clk 0:02:59.6]} 2. c4 {[%clk 0:03:00.2]}
2... c6 {[%clk 0:02:59.9]} 3. Nf3 {[%clk 0:03:00]} 3... Nf6 {[%clk 0:02:59.9]}
4. Nc3 {[%clk 0:03:00]} 4... e6 {[%clk 0:03:00]} 5. e3 {[%clk 0:02:59.8]} 5...
Nbd7 {[%clk 0:02:59.4]} 6. Qc2 {[%clk 0:03:00.3]} 6... Bd6 {[%clk 0:02:59]} 7.
Bd3 {[%clk 0:03:00.7]} 7... O-O {[%clk 0:02:58.6]} 8. O-O {[%clk 0:03:00.8]}
8... dxc4 {[%clk 0:02:59]} 9. Bxc4 {[%clk 0:03:01.7]} 9... e5 {[%clk 0:02:59.4]}
10. Rd1 {[%clk 0:02:49.5]} 10... Qe7 {[%clk 0:02:53.3]} 11. h3 {[%clk
0:02:39.1]} 11... Bc7 {[%clk 0:02:41.2]} 12. b3 {[%clk 0:02:34.2]} 12... e4
{[%clk 0:01:41.1]} 13. Nd2 {[%clk 0:02:30.3]} 13... Re8 {[%clk 0:01:40.3]} 14.
a4 {[%clk 0:02:26.1]} 14... Bd6 {[%clk 0:01:30]} 15. a5 {[%clk 0:02:23.2]} 15...
Nf8 {[%clk 0:01:28.5]} 16. Bb2 {[%clk 0:02:17.9]} 16... Ng6 {[%clk 0:01:22.5]}
17. d5 {[%clk 0:01:57.5]} 17... Bf5 {[%clk 0:01:15.3]} 18. dxc6 {[%clk
0:01:52.6]} 18... bxc6 {[%clk 0:01:15.3]} 19. Ne2 {[%clk 0:01:51.2]} 19... Nh4
{[%clk 0:01:10]} 20. Ng3 {[%clk 0:01:39.8]} 20... Bg6 {[%clk 0:01:03.6]} 21.
Ndf1 {[%clk 0:01:30.5]} 21... Rac8 {[%clk 0:00:47.4]} 22. Rd2 {[%clk 0:01:22]}
22... Be5 {[%clk 0:00:46.5]} 23. Rad1 {[%clk 0:01:21.2]} 23... Bxb2 {[%clk
0:00:45.1]} 24. Qxb2 {[%clk 0:01:22.1]} 24... Nf5 {[%clk 0:00:37.7]} 25. Nxf5
{[%clk 0:01:18.4]} 25... Bxf5 {[%clk 0:00:38.6]} 26. Ng3 {[%clk 0:01:19.1]}
26... Bg6 {[%clk 0:00:39]} 27. Qd4 {[%clk 0:01:15.8]} 27... h5 {[%clk
0:00:38.5]} 28. Qd6 {[%clk 0:01:11.9]} 28... h4 {[%clk 0:00:38.2]} 29. Ne2
{[%clk 0:01:12.2]} 29... Bh5 {[%clk 0:00:33]} 30. Qxe7 {[%clk 0:01:12.3]} 30...
Rxe7 {[%clk 0:00:32.4]} 31. Rd8+ {[%clk 0:01:13]} 31... Rxd8 {[%clk 0:00:30.7]}
32. Rxd8+ {[%clk 0:01:13.9]} 32... Kh7 {[%clk 0:00:30.9]} 33. Nf4 {[%clk
0:01:13.7]} 33... Bg6 {[%clk 0:00:25.3]} 34. Rc8 {[%clk 0:01:11.9]} 34... Nd5
{[%clk 0:00:20.8]} 35. Nxg6 {[%clk 0:01:00.1]} 35... fxg6 {[%clk 0:00:18]} 36.
Rxc6 {[%clk 0:01:00.5]} 36... Nb4 {[%clk 0:00:16.8]} 37. Rc8 {[%clk 0:00:54.3]}
37... Rd7 {[%clk 0:00:08.5]} 38. Re8 {[%clk 0:00:49.9]} 38... Rd1+ {[%clk
0:00:06.6]} 39. Kh2 {[%clk 0:00:50.2]} 39... Nd3 {[%clk 0:00:06.9]} 40. Rxe4
{[%clk 0:00:49.3]} 40... Rh1+ {[%clk 0:00:03.4]} 41. Kxh1 {[%clk 0:00:46.5]}
41... Nxf2+ {[%clk 0:00:04.3]} 42. Kg1 {[%clk 0:00:45.9]} 42... Nxe4 {[%clk
0:00:05.2]} 43. b4 {[%clk 0:00:39.9]} 43... Kh6 {[%clk 0:00:04.5]} 44. Bd3
{[%clk 0:00:38.3]} 44... Nd6 {[%clk 0:00:03.6]} 45. b5 {[%clk 0:00:38.6]} 45...
Kg5 {[%clk 0:00:03.4]} 46. b6 {[%clk 0:00:39.1]} 46... axb6 {[%clk 0:00:03.6]}
47. axb6 {[%clk 0:00:40]} 47... Kf6 {[%clk 0:00:03.6]} 48. Be4 {[%clk
0:00:36.4]} 1-0